[Event "Early-Titled-Tuesday-Blitz-January-16-2024"]
[Site "Chess.com"]
[Date "2024.01.16"]
[Round "7"]
[White "Massakru"]
[Black "marina1994"]
[Result "0-1"]
[WhiteElo "2314"]
[BlackElo "2523"]
[TimeControl "180+1"]
[EndTime "9:22:00 PST"]
[Termination "marina1994 won by resignation"]

1. e4 {[%clk 0:03:00.9]} 1... c5 {[%clk 0:02:59.1]} 2. Nf3 {[%clk 0:03:01.1]}
2... d6 {[%clk 0:02:58.9]} 3. c3 {[%clk 0:03:01.7]} 3... Nf6 {[%clk 0:02:53.9]}
4. h3 {[%clk 0:03:01.8]} 4... g6 {[%clk 0:02:53.5]} 5. Bd3 {[%clk 0:03:01.5]}
5... Bg7 {[%clk 0:02:53.6]} 6. Bc2 {[%clk 0:03:01.8]} 6... O-O {[%clk
0:02:48.7]} 7. d4 {[%clk 0:03:01.9]} 7... b5 {[%clk 0:02:44.1]} 8. O-O {[%clk
0:02:56.4]} 8... Bb7 {[%clk 0:02:43.9]} 9. Re1 {[%clk 0:02:53.2]} 9... Nbd7
{[%clk 0:02:33.9]} 10. Na3 {[%clk 0:02:40]} 10... a6 {[%clk 0:02:31.2]} 11. Bg5
{[%clk 0:02:39.3]} 11... h6 {[%clk 0:02:20.8]} 12. Bh4 {[%clk 0:02:38.2]} 12...
Qc7 {[%clk 0:02:10.4]} 13. Rc1 {[%clk 0:02:32.7]} 13... e5 {[%clk 0:02:07.3]}
14. d5 {[%clk 0:02:28.9]} 14... c4 {[%clk 0:02:03.8]} 15. Bb1 {[%clk 0:02:26.4]}
15... Nc5 {[%clk 0:02:03.2]} 16. b4 {[%clk 0:02:17.5]} 16... Ncd7 {[%clk
0:01:45.3]} 17. Nc2 {[%clk 0:02:14.7]} 17... a5 {[%clk 0:01:42.4]} 18. bxa5
{[%clk 0:02:04.2]} 18... Rxa5 {[%clk 0:01:39.3]} 19. Nb4 {[%clk 0:02:01.8]}
19... Rfa8 {[%clk 0:01:37]} 20. g4 {[%clk 0:01:53.1]} 20... Nc5 {[%clk
0:01:35.9]} 21. Qd2 {[%clk 0:01:40.5]} 21... Nfd7 {[%clk 0:01:21.7]} 22. Bg3
{[%clk 0:01:20.9]} 22... Na6 {[%clk 0:01:17.1]} 23. Nxa6 {[%clk 0:01:17.8]}
23... R5xa6 {[%clk 0:01:15.4]} 24. Qb2 {[%clk 0:01:11.3]} 24... Ra5 {[%clk
0:01:13.3]} 25. h4 {[%clk 0:01:04.8]} 25... Nc5 {[%clk 0:01:12.8]} 26. g5 {[%clk
0:01:01.9]} 26... h5 {[%clk 0:01:11.6]} 27. Re2 {[%clk 0:00:57.4]} 27... Bc8
{[%clk 0:01:10.4]} 28. Ne1 {[%clk 0:00:52.3]} 28... Bg4 {[%clk 0:01:08.4]} 29.
f3 {[%clk 0:00:52.1]} 29... Bd7 {[%clk 0:01:07.7]} 30. Bf2 {[%clk 0:00:51.3]}
30... Ra3 {[%clk 0:00:53.4]} 31. Nc2 {[%clk 0:00:43.9]} 31... Nd3 {[%clk
0:00:52.1]} 32. Nxa3 {[%clk 0:00:29.4]} 32... Nxb2 {[%clk 0:00:50.7]} 33. Nxb5
{[%clk 0:00:26.9]} 33... Bxb5 {[%clk 0:00:50]} 34. Rxb2 {[%clk 0:00:26.8]} 34...
Bd7 {[%clk 0:00:49]} 35. Bc2 {[%clk 0:00:22.4]} 35... Ra3 {[%clk 0:00:46.7]} 36.
Be1 {[%clk 0:00:20]} 36... Qa7+ {[%clk 0:00:44.3]} 37. Kf1 {[%clk 0:00:17.9]}
37... Rxa2 {[%clk 0:00:43.4]} 38. Rcb1 {[%clk 0:00:16.6]} 38... Rxb2 {[%clk
0:00:41.3]} 39. Rxb2 {[%clk 0:00:17.5]} 39... Bh3+ {[%clk 0:00:41]} 40. Ke2
{[%clk 0:00:16.9]} 40... Qg1 {[%clk 0:00:40.9]} 41. Bf2 {[%clk 0:00:14.8]} 41...
Qf1+ {[%clk 0:00:38.2]} 42. Ke3 {[%clk 0:00:12.7]} 42... Qc1+ {[%clk 0:00:37.1]}
0-1

[Event "Early-Titled-Tuesday-Blitz-January-16-2024"]
[Site "Chess.com"]
[Date "2024.01.16"]
[Round "7"]
[White "MyDream003"]
[Black "Msb2"]
[Result "1-0"]
[WhiteElo "2880"]
[BlackElo "3041"]
[TimeControl "180+1"]
[EndTime "9:22:01 PST"]
[Termination "MyDream003 won by checkmate"]

1. e4 {[%clk 0:02:58.6]} 1... e6 {[%clk 0:03:00.3]} 2. d4 {[%clk 0:02:58.8]}
2... d5 {[%clk 0:03:00.9]} 3. Nd2 {[%clk 0:02:57]} 3... c5 {[%clk 0:03:01.1]} 4.
Ngf3 {[%clk 0:02:49.4]} 4... Nf6 {[%clk 0:03:00.9]} 5. exd5 {[%clk 0:02:47.2]}
5... Nxd5 {[%clk 0:03:01.8]} 6. Bb5+ {[%clk 0:02:35.9]} 6... Bd7 {[%clk
0:03:00.4]} 7. Bxd7+ {[%clk 0:02:31.6]} 7... Nxd7 {[%clk 0:03:01.3]} 8. O-O
{[%clk 0:02:30.7]} 8... Be7 {[%clk 0:03:01.5]} 9. c4 {[%clk 0:02:24.8]} 9...
N5f6 {[%clk 0:03:01.7]} 10. b3 {[%clk 0:02:23.3]} 10... cxd4 {[%clk 0:02:59.8]}
11. Nxd4 {[%clk 0:02:24.2]} 11... O-O {[%clk 0:03:00.6]} 12. Bb2 {[%clk
0:02:24.8]} 12... a6 {[%clk 0:03:01.3]} 13. Qe2 {[%clk 0:02:25.3]} 13... Qc7
{[%clk 0:03:01.8]} 14. N2f3 {[%clk 0:02:20.8]} 14... h6 {[%clk 0:02:54.9]} 15.
Rfd1 {[%clk 0:02:20.5]} 15... Rfe8 {[%clk 0:02:54.1]} 16. Rac1 {[%clk
0:02:20.1]} 16... Rad8 {[%clk 0:02:54]} 17. h3 {[%clk 0:02:20.5]} 17... Nf8
{[%clk 0:02:53.8]} 18. Nc2 {[%clk 0:01:59.7]} 18... Ng6 {[%clk 0:02:52.8]} 19.
Rxd8 {[%clk 0:01:59.5]} 19... Rxd8 {[%clk 0:02:53.7]} 20. Rd1 {[%clk 0:02:00]}
20... Rxd1+ {[%clk 0:02:40.3]} 21. Qxd1 {[%clk 0:02:00.9]} 21... Nd7 {[%clk
0:02:40.8]} 22. Ne3 {[%clk 0:01:56.1]} 22... Bf6 {[%clk 0:02:40.5]} 23. Bxf6
{[%clk 0:01:55.8]} 23... Nxf6 {[%clk 0:02:41.4]} 24. Qd4 {[%clk 0:01:49.3]}
24... Ne7 {[%clk 0:02:34.3]} 25. Ne5 {[%clk 0:01:48.3]} 25... Kf8 {[%clk
0:02:11.8]} 26. b4 {[%clk 0:01:45]} 26... Ke8 {[%clk 0:02:11.4]} 27. a4 {[%clk
0:01:40.4]} 27... Nc6 {[%clk 0:02:07.7]} 28. Nxc6 {[%clk 0:01:36.3]} 28... Qxc6
{[%clk 0:02:08.6]} 29. b5 {[%clk 0:01:34.9]} 29... Qd7 {[%clk 0:02:09.2]} 30.
Qb6 {[%clk 0:01:28.4]} 30... Qc8 {[%clk 0:02:03]} 31. Qd4 {[%clk 0:00:53.2]}
31... Ke7 {[%clk 0:01:59.8]} 32. c5 {[%clk 0:00:49.2]} 32... axb5 {[%clk
0:01:59.9]} 33. axb5 {[%clk 0:00:49.2]} 33... Qd7 {[%clk 0:01:59.2]} 34. Qb4
{[%clk 0:00:47.5]} 34... Ke8 {[%clk 0:01:50.3]} 35. c6 {[%clk 0:00:39.5]} 35...
bxc6 {[%clk 0:01:50]} 36. b6 {[%clk 0:00:39.8]} 36... Qb7 {[%clk 0:01:02.4]} 37.
Nc4 {[%clk 0:00:38.3]} 37... Qb8 {[%clk 0:01:02.9]} 38. b7 {[%clk 0:00:26.6]}
38... Kd7 {[%clk 0:01:03.5]} 39. Ne5+ {[%clk 0:00:11.9]} 39... Kc7 {[%clk
0:00:57.7]} 40. Qe7+ {[%clk 0:00:11.9]} 40... Kb6 {[%clk 0:00:58.1]} 41. Qb4+
{[%clk 0:00:11.8]} 41... Kc7 {[%clk 0:00:58.1]} 42. Qe7+ {[%clk 0:00:07.9]}
42... Kb6 {[%clk 0:00:58.7]} 43. Qb4+ {[%clk 0:00:05.6]} 43... Ka6 {[%clk
0:00:52.5]} 44. Nxc6 {[%clk 0:00:04.2]} 44... Qxb7 {[%clk 0:00:53.1]} 45. Qa5#
{[%clk 0:00:04.4]} 1-0

[Event "Early-Titled-Tuesday-Blitz-January-16-2024"]
[Site "Chess.com"]
[Date "2024.01.16"]
[Round "7"]
[White "BursaBBSatranc"]
[Black "DvaHrasta"]
[Result "1-0"]
[WhiteElo "2723"]
[BlackElo "2454"]
[TimeControl "180+1"]
[EndTime "9:22:02 PST"]
[Termination "BursaBBSatranc won on time"]

1. d4 {[%clk 0:03:00.9]} 1... Nf6 {[%clk 0:02:57.7]} 2. Bf4 {[%clk 0:02:59.8]}
2... d5 {[%clk 0:02:57.1]} 3. e3 {[%clk 0:02:59.6]} 3... e6 {[%clk 0:02:57.5]}
4. Nf3 {[%clk 0:02:59.7]} 4... Bd6 {[%clk 0:02:57.7]} 5. Nbd2 {[%clk 0:03:00]}
5... O-O {[%clk 0:02:57.5]} 6. Bd3 {[%clk 0:03:00.2]} 6... b6 {[%clk 0:02:57.8]}
7. Qe2 {[%clk 0:03:00.2]} 7... c5 {[%clk 0:02:56]} 8. c3 {[%clk 0:03:00.4]} 8...
a5 {[%clk 0:02:54.7]} 9. Bxd6 {[%clk 0:02:51.5]} 9... Qxd6 {[%clk 0:02:53.7]}
10. e4 {[%clk 0:02:52.4]} 10... Qd8 {[%clk 0:02:32.2]} 11. e5 {[%clk 0:02:51.9]}
11... Nfd7 {[%clk 0:02:29]} 12. h4 {[%clk 0:02:37.7]} 12... h6 {[%clk
0:02:20.5]} 13. Qe3 {[%clk 0:02:27.2]} 13... Ba6 {[%clk 0:02:16.3]} 14. Bxa6
{[%clk 0:02:18]} 14... Rxa6 {[%clk 0:02:15.8]} 15. a3 {[%clk 0:02:18.7]} 15...
a4 {[%clk 0:02:15.1]} 16. h5 {[%clk 0:02:14]} 16... Nc6 {[%clk 0:02:12.3]} 17.
g4 {[%clk 0:02:13.4]} 17... f6 {[%clk 0:02:00.9]} 18. exf6 {[%clk 0:02:10.6]}
18... Qxf6 {[%clk 0:01:56.6]} 19. O-O-O {[%clk 0:01:27.5]} 19... cxd4 {[%clk
0:01:48.2]} 20. cxd4 {[%clk 0:01:25.6]} 20... b5 {[%clk 0:01:45]} 21. Rdg1
{[%clk 0:01:19.7]} 21... b4 {[%clk 0:01:40.8]} 22. g5 {[%clk 0:01:17.4]} 22...
hxg5 {[%clk 0:01:39.8]} 23. Rxg5 {[%clk 0:01:17]} 23... bxa3 {[%clk 0:01:33.6]}
24. bxa3 {[%clk 0:01:17.2]} 24... Na5 {[%clk 0:01:29.6]} 25. Rhg1 {[%clk
0:01:04.2]} 25... Rf7 {[%clk 0:01:11.8]} 26. h6 {[%clk 0:01:04]} 26... Rc6+
{[%clk 0:00:58.6]} 27. Kd1 {[%clk 0:01:02.5]} 27... Nc4 {[%clk 0:00:55.1]} 28.
Nxc4 {[%clk 0:00:55.4]} 28... Rxc4 {[%clk 0:00:33.4]} 29. Rxg7+ {[%clk
0:00:49.5]} 29... Rxg7 {[%clk 0:00:33.4]} 30. Rxg7+ {[%clk 0:00:49.2]} 30... Kf8
{[%clk 0:00:25.7]} 31. Rxd7 {[%clk 0:00:43.7]} 31... Qf5 {[%clk 0:00:20.3]} 32.
Nd2 {[%clk 0:00:33.7]} 32... Qc2+ {[%clk 0:00:13.6]} 33. Ke2 {[%clk 0:00:29.8]}
33... Rc3 {[%clk 0:00:13.7]} 34. Qf4+ {[%clk 0:00:30.1]} 1-0

[Event "Early-Titled-Tuesday-Blitz-January-16-2024"]
[Site "Chess.com"]
[Date "2024.01.16"]
[Round "7"]
[White "pavet"]
[Black "FormerProdigy"]
[Result "0-1"]
[WhiteElo "2777"]
[BlackElo "3007"]
[TimeControl "180+1"]
[EndTime "9:22:04 PST"]
[Termination "FormerProdigy won by resignation"]

1. e4 {[%clk 0:03:00.9]} 1... c6 {[%clk 0:02:59.6]} 2. d4 {[%clk 0:02:54.7]}
2... d5 {[%clk 0:03:00.5]} 3. e5 {[%clk 0:02:54.9]} 3... Bf5 {[%clk 0:03:00.1]}
4. h4 {[%clk 0:02:55.1]} 4... h5 {[%clk 0:02:59.3]} 5. Bd3 {[%clk 0:02:55.2]}
5... Bxd3 {[%clk 0:02:58.8]} 6. Qxd3 {[%clk 0:02:56.1]} 6... Qa5+ {[%clk
0:02:57.4]} 7. Nd2 {[%clk 0:02:56.4]} 7... e6 {[%clk 0:02:55.4]} 8. Nf3 {[%clk
0:02:56.2]} 8... Nh6 {[%clk 0:02:54.4]} 9. O-O {[%clk 0:02:56.2]} 9... Nf5
{[%clk 0:02:54]} 10. a4 {[%clk 0:02:55.2]} 10... Be7 {[%clk 0:02:46.9]} 11. b3
{[%clk 0:02:55.3]} 11... Na6 {[%clk 0:02:42.5]} 12. c4 {[%clk 0:02:47.2]} 12...
Nb4 {[%clk 0:02:39.2]} 13. Qb1 {[%clk 0:02:41.9]} 13... Qd8 {[%clk 0:02:22.4]}
14. Ba3 {[%clk 0:02:19.5]} 14... a5 {[%clk 0:02:21.4]} 15. Bxb4 {[%clk
0:02:16.1]} 15... Bxb4 {[%clk 0:02:14.6]} 16. Qd3 {[%clk 0:02:09.1]} 16... Nxh4
{[%clk 0:02:05.2]} 17. cxd5 {[%clk 0:02:03.6]} 17... Nxf3+ {[%clk 0:02:01.3]}
18. Nxf3 {[%clk 0:02:03.2]} 18... Qxd5 {[%clk 0:01:58.7]} 19. Rfd1 {[%clk
0:01:59.9]} 19... h4 {[%clk 0:01:51.2]} 20. Rac1 {[%clk 0:01:51.6]} 20... h3
{[%clk 0:01:46.7]} 21. gxh3 {[%clk 0:01:41.8]} 21... Rxh3 {[%clk 0:01:47.6]} 22.
Kg2 {[%clk 0:01:42.3]} 22... Rh6 {[%clk 0:01:40]} 23. Rh1 {[%clk 0:01:42.2]}
23... Rg6+ {[%clk 0:01:23.4]} 24. Kf1 {[%clk 0:01:42.1]} 24... O-O-O {[%clk
0:01:23.9]} 25. Ke2 {[%clk 0:01:29.1]} 25... Rg4 {[%clk 0:01:22.1]} 26. Rcg1
{[%clk 0:01:25.1]} 26... Re4+ {[%clk 0:01:13.2]} 27. Kf1 {[%clk 0:01:24.8]}
27... Rf4 {[%clk 0:01:10.7]} 28. Rh3 {[%clk 0:01:17.7]} 28... g6 {[%clk
0:01:07.7]} 29. Rgg3 {[%clk 0:00:44.8]} 29... Kb8 {[%clk 0:00:51.6]} 30. Rh7
{[%clk 0:00:41.6]} 30... Rd7 {[%clk 0:00:49.1]} 31. Rh8+ {[%clk 0:00:41.2]}
31... Ka7 {[%clk 0:00:48.3]} 32. Kg2 {[%clk 0:00:35.9]} 32... c5 {[%clk
0:00:47.6]} 33. Kg1 {[%clk 0:00:29.7]} 33... cxd4 {[%clk 0:00:45.2]} 34. Rc8
{[%clk 0:00:29.1]} 34... g5 {[%clk 0:00:35.5]} 35. Rg8 {[%clk 0:00:21]} 35...
Rc7 {[%clk 0:00:30]} 36. R8xg5 {[%clk 0:00:21]} 36... Rc3 {[%clk 0:00:30.2]} 37.
Qb5 {[%clk 0:00:10.9]} 37... Qxb5 {[%clk 0:00:29.3]} 0-1

[Event "Early-Titled-Tuesday-Blitz-January-16-2024"]
[Site "Chess.com"]
[Date "2024.01.16"]
[Round "7"]
[White "lefonghua"]
[Black "SarochaChuemsakul"]
[Result "1-0"]
[WhiteElo "2655"]
[BlackElo "2447"]
[TimeControl "180+1"]
[EndTime "9:22:06 PST"]
[Termination "lefonghua won by resignation"]

1. d4 {[%clk 0:03:00.9]} 1... g6 {[%clk 0:02:55.7]} 2. c4 {[%clk 0:03:01.1]}
2... Bg7 {[%clk 0:02:56.1]} 3. e4 {[%clk 0:03:01.6]} 3... d6 {[%clk 0:02:56.5]}
4. f4 {[%clk 0:03:02.1]} 4... Nf6 {[%clk 0:02:56]} 5. Nc3 {[%clk 0:03:02.1]}
5... O-O {[%clk 0:02:56.4]} 6. Nf3 {[%clk 0:03:02.5]} 6... c5 {[%clk 0:02:57]}
7. d5 {[%clk 0:03:02.8]} 7... e6 {[%clk 0:02:57.7]} 8. Be2 {[%clk 0:03:03.1]}
8... exd5 {[%clk 0:02:58.6]} 9. cxd5 {[%clk 0:03:04]} 9... Re8 {[%clk
0:02:57.5]} 10. Nd2 {[%clk 0:03:04]} 10... Na6 {[%clk 0:02:34.9]} 11. O-O {[%clk
0:03:03.3]} 11... Nc7 {[%clk 0:02:33.7]} 12. a4 {[%clk 0:03:02.8]} 12... Na6
{[%clk 0:02:23.1]} 13. Bf3 {[%clk 0:03:01]} 13... Nb4 {[%clk 0:02:23]} 14. Nc4
{[%clk 0:03:01.5]} 14... a6 {[%clk 0:02:02.1]} 15. Re1 {[%clk 0:02:55]} 15... h5
{[%clk 0:01:56.1]} 16. h3 {[%clk 0:02:54.8]} 16... Rb8 {[%clk 0:01:46.5]} 17. a5
{[%clk 0:02:45.3]} 17... h4 {[%clk 0:01:16.8]} 18. e5 {[%clk 0:02:38.4]} 18...
dxe5 {[%clk 0:01:14.3]} 19. fxe5 {[%clk 0:02:39.3]} 19... Nh7 {[%clk 0:01:14.2]}
20. Bf4 {[%clk 0:02:31.8]} 20... Bf5 {[%clk 0:01:12]} 21. Nd6 {[%clk 0:02:24.4]}
21... Nd3 {[%clk 0:00:50.9]} 22. Nxe8 {[%clk 0:02:04.2]} 22... Nxe1 {[%clk
0:00:32]} 23. Qxe1 {[%clk 0:01:53.4]} 23... Qxe8 {[%clk 0:00:31.8]} 24. e6
{[%clk 0:01:48.4]} 24... Bd4+ {[%clk 0:00:31.3]} 25. Kh1 {[%clk 0:01:45.4]}
25... Rc8 {[%clk 0:00:27.3]} 26. exf7+ {[%clk 0:01:40.4]} 26... Qxf7 {[%clk
0:00:28.1]} 27. Qxh4 {[%clk 0:01:40.6]} 27... Qf6 {[%clk 0:00:15.4]} 28. Qxf6
{[%clk 0:01:36.6]} 28... Nxf6 {[%clk 0:00:15.7]} 29. g4 {[%clk 0:01:30.2]} 29...
Bxc3 {[%clk 0:00:14.8]} 30. bxc3 {[%clk 0:01:28.6]} 30... Be4 {[%clk 0:00:15.3]}
31. Bxe4 {[%clk 0:01:25.8]} 31... Nxe4 {[%clk 0:00:16.2]} 32. c4 {[%clk
0:01:25]} 32... Rf8 {[%clk 0:00:14.5]} 33. Bc7 {[%clk 0:01:23]} 33... Rf3 {[%clk
0:00:08.6]} 34. Kg2 {[%clk 0:01:08.9]} 34... Rf2+ {[%clk 0:00:05.2]} 35. Kg1
{[%clk 0:01:08.5]} 35... Rd2 {[%clk 0:00:05.4]} 36. Bf4 {[%clk 0:01:02.1]} 36...
Rd3 {[%clk 0:00:03.3]} 37. Rb1 {[%clk 0:01:01.3]} 37... Rxh3 {[%clk 0:00:02.2]}
38. Rxb7 {[%clk 0:01:01.2]} 38... g5 {[%clk 0:00:01.9]} 39. d6 {[%clk 0:00:59]}
39... gxf4 {[%clk 0:00:01.2]} 40. d7 {[%clk 0:00:55.6]} 40... Rg3+ {[%clk
0:00:01.9]} 41. Kh2 {[%clk 0:00:54.1]} 41... Rd3 {[%clk 0:00:01.3]} 42. Rb8+
{[%clk 0:00:53.9]} 42... Kf7 {[%clk 0:00:02.2]} 43. d8=Q {[%clk 0:00:54.4]}
43... Rxd8 {[%clk 0:00:03.1]} 44. Rxd8 {[%clk 0:00:55.1]} 44... Ke6 {[%clk
0:00:03.8]} 45. Ra8 {[%clk 0:00:55.1]} 45... Ke5 {[%clk 0:00:03.4]} 46. Rxa6
{[%clk 0:00:55.4]} 46... Nd6 {[%clk 0:00:03.2]} 47. Rxd6 {[%clk 0:00:54.5]} 1-0

[Event "Early-Titled-Tuesday-Blitz-January-16-2024"]
[Site "Chess.com"]
[Date "2024.01.16"]
[Round "7"]
[White "DDTerziev04"]
[Black "EsmeraldasAnderson03"]
[Result "0-1"]
[WhiteElo "2168"]
[BlackElo "2403"]
[TimeControl "180+1"]
[EndTime "9:22:06 PST"]
[Termination "EsmeraldasAnderson03 won on time"]

1. e4 {[%clk 0:03:00.9]} 1... c5 {[%clk 0:02:59.7]} 2. Nf3 {[%clk 0:02:59.9]}
2... d6 {[%clk 0:03:00.2]} 3. d4 {[%clk 0:02:59.6]} 3... cxd4 {[%clk 0:03:01.1]}
4. Qxd4 {[%clk 0:03:00.1]} 4... Nf6 {[%clk 0:03:02]} 5. c4 {[%clk 0:02:59.8]}
5... Nc6 {[%clk 0:03:02.2]} 6. Qe3 {[%clk 0:03:00.3]} 6... g6 {[%clk 0:03:02.7]}
7. Be2 {[%clk 0:02:59.7]} 7... Bg7 {[%clk 0:03:02.1]} 8. Nc3 {[%clk 0:02:59.7]}
8... O-O {[%clk 0:03:02.8]} 9. O-O {[%clk 0:02:59.7]} 9... a6 {[%clk 0:03:02]}
10. h3 {[%clk 0:02:59.7]} 10... Bd7 {[%clk 0:03:02.3]} 11. Rd1 {[%clk
0:02:58.7]} 11... Qc7 {[%clk 0:03:02.3]} 12. Rb1 {[%clk 0:02:57.8]} 12... Rab8
{[%clk 0:03:01.9]} 13. b3 {[%clk 0:02:56.9]} 13... h6 {[%clk 0:03:00.2]} 14. Bb2
{[%clk 0:02:56.8]} 14... Kh7 {[%clk 0:03:00.7]} 15. Rd2 {[%clk 0:02:56.5]} 15...
Qa5 {[%clk 0:02:48.4]} 16. Rbd1 {[%clk 0:02:48.8]} 16... b5 {[%clk 0:02:47.6]}
17. cxb5 {[%clk 0:02:28.8]} 17... axb5 {[%clk 0:02:48.5]} 18. Nd5 {[%clk
0:02:29.1]} 18... Ng8 {[%clk 0:02:21.9]} 19. Bxg7 {[%clk 0:02:04.4]} 19... Kxg7
{[%clk 0:02:22.5]} 20. b4 {[%clk 0:02:02.5]} 20... Nxb4 {[%clk 0:02:14.9]} 21.
Qc3+ {[%clk 0:01:59.4]} 21... Nf6 {[%clk 0:02:12.6]} 22. Qxb4 {[%clk 0:01:55.7]}
22... Qxb4 {[%clk 0:02:11.3]} 23. Nxb4 {[%clk 0:01:55.6]} 23... Nxe4 {[%clk
0:02:12]} 24. Rc2 {[%clk 0:01:52.4]} 24... Bf5 {[%clk 0:02:09.4]} 25. Rc7 {[%clk
0:01:47.9]} 25... e5 {[%clk 0:02:04.1]} 26. Rdc1 {[%clk 0:01:43.9]} 26... Ra8
{[%clk 0:02:00.9]} 27. Bxb5 {[%clk 0:01:28.9]} 27... Rfb8 {[%clk 0:01:39.5]} 28.
a4 {[%clk 0:01:03.4]} 28... Nc5 {[%clk 0:01:38.3]} 29. Nc6 {[%clk 0:00:59.3]}
29... Rc8 {[%clk 0:01:33.2]} 30. Rxc8 {[%clk 0:00:56.1]} 30... Bxc8 {[%clk
0:01:32.8]} 31. Nb4 {[%clk 0:00:37.3]} 31... Nxa4 {[%clk 0:01:31.7]} 32. Bxa4
{[%clk 0:00:36]} 32... Rxa4 {[%clk 0:01:32.6]} 33. Rxc8 {[%clk 0:00:35.6]} 33...
Rxb4 {[%clk 0:01:33.2]} 34. Rd8 {[%clk 0:00:35.8]} 34... Rb1+ {[%clk 0:01:31.8]}
35. Kh2 {[%clk 0:00:35.4]} 35... Rd1 {[%clk 0:01:32.7]} 36. Ng1 {[%clk
0:00:31.8]} 36... f5 {[%clk 0:01:31.8]} 37. f3 {[%clk 0:00:30.9]} 37... Rd2
{[%clk 0:01:30.4]} 38. h4 {[%clk 0:00:29.3]} 38... Kf6 {[%clk 0:01:30.2]} 39.
Nh3 {[%clk 0:00:28.2]} 39... d5 {[%clk 0:01:28.4]} 40. Rd6+ {[%clk 0:00:26.8]}
40... Kf7 {[%clk 0:01:28.8]} 41. h5 {[%clk 0:00:24.3]} 41... gxh5 {[%clk
0:01:26]} 42. Rxh6 {[%clk 0:00:23.7]} 42... d4 {[%clk 0:01:25.5]} 43. Ng5+
{[%clk 0:00:23.2]} 43... Kg7 {[%clk 0:01:24.3]} 44. Rd6 {[%clk 0:00:22]} 44...
Rd1 {[%clk 0:01:18.6]} 45. Ne6+ {[%clk 0:00:20.6]} 45... Kf7 {[%clk 0:01:16.1]}
46. Nc5 {[%clk 0:00:17.1]} 46... Re1 {[%clk 0:01:05.6]} 47. Nd3 {[%clk
0:00:16.3]} 47... Re3 {[%clk 0:01:05.2]} 48. Nc5 {[%clk 0:00:13.4]} 48... Rc3
{[%clk 0:01:00.6]} 49. Na6 {[%clk 0:00:02.1]} 49... Ke7 {[%clk 0:00:59.3]} 50.
Rb6 {[%clk 0:00:01.7]} 50... e4 {[%clk 0:00:58]} 0-1

[Event "Early-Titled-Tuesday-Blitz-January-16-2024"]
[Site "Chess.com"]
[Date "2024.01.16"]
[Round "7"]
[White "chenxiaoyuer"]
[Black "Smiechu"]
[Result "1-0"]
[WhiteElo "2741"]
[BlackElo "2510"]
[TimeControl "180+1"]
[EndTime "9:22:08 PST"]
[Termination "chenxiaoyuer won on time"]

1. e4 {[%clk 0:03:00.9]} 1... c5 {[%clk 0:02:40]} 2. Nf3 {[%clk 0:03:00.7]} 2...
g6 {[%clk 0:02:32.9]} 3. d4 {[%clk 0:03:00.4]} 3... cxd4 {[%clk 0:02:26.6]} 4.
Nxd4 {[%clk 0:03:01.3]} 4... Nc6 {[%clk 0:02:26.1]} 5. c4 {[%clk 0:02:59.6]}
5... Nf6 {[%clk 0:02:22.8]} 6. Nc3 {[%clk 0:02:59.2]} 6... Nxd4 {[%clk 0:02:15]}
7. Qxd4 {[%clk 0:02:57.9]} 7... d6 {[%clk 0:02:15.1]} 8. Be3 {[%clk 0:02:52.7]}
8... Bg7 {[%clk 0:02:12.4]} 9. Be2 {[%clk 0:02:45.8]} 9... O-O {[%clk
0:02:08.2]} 10. Qd2 {[%clk 0:02:45.9]} 10... a5 {[%clk 0:02:08.4]} 11. O-O
{[%clk 0:02:38.2]} 11... a4 {[%clk 0:02:06.1]} 12. Bd4 {[%clk 0:02:35]} 12...
Qa5 {[%clk 0:01:48]} 13. Rad1 {[%clk 0:02:29.5]} 13... Be6 {[%clk 0:01:42.2]}
14. f4 {[%clk 0:02:24.9]} 14... Rfc8 {[%clk 0:01:36.9]} 15. b3 {[%clk
0:02:24.4]} 15... axb3 {[%clk 0:01:21.3]} 16. axb3 {[%clk 0:02:25.3]} 16... Qb4
{[%clk 0:01:21.8]} 17. Qc2 {[%clk 0:02:14.2]} 17... b5 {[%clk 0:01:05.5]} 18. f5
{[%clk 0:02:03]} 18... Bd7 {[%clk 0:00:54.9]} 19. Kh1 {[%clk 0:01:47.8]} 19...
Bc6 {[%clk 0:00:51.2]} 20. e5 {[%clk 0:01:31.8]} 20... dxe5 {[%clk 0:00:50.1]}
21. Bxe5 {[%clk 0:01:32.7]} 21... Qc5 {[%clk 0:00:36.6]} 22. Bd4 {[%clk
0:01:30.7]} 22... Qb4 {[%clk 0:00:33]} 23. Qb2 {[%clk 0:01:15.1]} 23... bxc4
{[%clk 0:00:26.5]} 24. Bxc4 {[%clk 0:01:16]} 24... Qb7 {[%clk 0:00:26.5]} 25.
Qe2 {[%clk 0:01:11.1]} 25... Ra5 {[%clk 0:00:18.7]} 26. Rde1 {[%clk 0:01:07]}
26... Rxf5 {[%clk 0:00:16.7]} 27. Rxf5 {[%clk 0:01:07.3]} 27... gxf5 {[%clk
0:00:17.5]} 28. Qxe7 {[%clk 0:01:07.9]} 28... Bxg2+ {[%clk 0:00:17.6]} 29. Kg1
{[%clk 0:01:07.4]} 29... Re8 {[%clk 0:00:12.5]} 30. Qxe8+ {[%clk 0:00:57.1]}
30... Nxe8 {[%clk 0:00:11.9]} 31. Rxe8+ {[%clk 0:00:58]} 31... Bf8 {[%clk
0:00:12.1]} 32. Bc5 {[%clk 0:00:58.9]} 32... h5 {[%clk 0:00:07.8]} 33. Bxf8
{[%clk 0:00:55]} 33... Kh7 {[%clk 0:00:07.6]} 34. Re7 {[%clk 0:00:48.4]} 34...
Qf3 {[%clk 0:00:06.2]} 35. Rxf7+ {[%clk 0:00:48]} 35... Kg6 {[%clk 0:00:06.5]}
36. Rg7+ {[%clk 0:00:48.1]} 36... Kf6 {[%clk 0:00:06.2]} 37. Rf7+ {[%clk
0:00:45.9]} 37... Kg6 {[%clk 0:00:05.8]} 38. Rg7+ {[%clk 0:00:44.9]} 38... Kf6
{[%clk 0:00:06]} 39. Rxg2 {[%clk 0:00:45.6]} 39... Qe3+ {[%clk 0:00:05.6]} 40.
Kf1 {[%clk 0:00:44.1]} 40... Qc1+ {[%clk 0:00:05.1]} 41. Kf2 {[%clk 0:00:43.8]}
41... Qf4+ {[%clk 0:00:04.5]} 42. Ke2 {[%clk 0:00:44.3]} 42... Qe5+ {[%clk
0:00:02.8]} 43. Kd3 {[%clk 0:00:44.9]} 1-0